bitfinex/quotes_BTCUSD_20251104
["timestamp","ask_amount","ask_price","bid_price","bid_amount"]
[1762257714395,0.30194777,104600.0,104590.0,0.003]
[1762257715394,0.2869224,104600.0,104590.0,0.01230879]
[1762257716802,0.19144333,104600.0,104590.0,0.06825879]
[1762257717119,0.19144333,104600.0,104590.0,0.04326879]
[1762257717448,0.19144333,104600.0,104590.0,0.06825879]
[1762257717628,0.19144333,104600.0,104590.0,0.25948166]
[1762257717784,0.19144333,104600.0,104590.0,0.06825879]
[1762257718394,0.19144333,104600.0,104590.0,0.25948166]
[1762257718794,0.19144333,104600.0,104590.0,0.06825879]
[1762257719868,0.19144333,104600.0,104590.0,0.04326879]
[1762257720546,0.19144333,104600.0,104590.0,0.02594879]
[1762257720723,0.19144333,104600.0,104590.0,0.003]
[1762257720926,0.2869224,104600.0,104590.0,0.003]
[1762257721308,0.28668365,104600.0,104590.0,0.003]
[1762257722819,0.28668365,104600.0,104590.0,0.02032]
[1762257723029,0.19120458,104600.0,104590.0,0.04231]
[1762257723223,0.19120458,104600.0,104590.0,0.05161879]
[1762257724034,0.19124115,104580.0,104570.0,0.22921435]
[1762257724210,0.19124115,104580.0,104570.0,0.23852314]
[1762257724415,0.19124115,104580.0,104570.0,0.25584314]
[1762257725345,0.29624387,104600.0,104580.0,0.19124115]
[1762257725576,0.29624387,104600.0,104590.0,0.01932]
[1762257726009,0.29624387,104600.0,104590.0,0.01732]
[1762257726842,0.29624387,104600.0,104570.0,0.24832499]
[1762257726843,0.19124115,104580.0,104570.0,0.24832499]
[1762257727224,0.19124115,104580.0,104570.0,0.03983258]
[1762257727648,0.19124115,104580.0,104570.0,0.03052379]
[1762257727848,0.19124115,104580.0,104570.0,0.05551379]
[1762257727972,0.19124115,104580.0,104570.0,0.06482258]
[1762257728174,0.19124115,104580.0,104570.0,0.02251258]
[1762257728391,0.19124115,104580.0,104570.0,0.00969258]
[1762257728590,0.19124115,104580.0,104570.0,0.00238379]
[1762257728791,0.32496662,104580.0,104570.0,0.00238379]
[1762257729008,0.28672022,104580.0,104570.0,0.00238379]
[1762257729208,0.28672022,104580.0,104570.0,0.00638379]
[1762257729406,0.28672022,104580.0,104570.0,0.00438379]
[1762257729824,0.28672022,104580.0,104570.0,0.00138379]
[1762257730032,0.28672022,104580.0,104570.0,0.01502379]
[1762257730696,0.28672022,104580.0,104570.0,0.01702379]
[1762257731415,0.28672022,104580.0,104570.0,0.01602379]
[1762257731778,0.28672022,104580.0,104570.0,0.01402379]
[1762257732340,0.28672022,104580.0,104570.0,0.03134379]
[1762257732959,0.28672022,104580.0,104570.0,0.00038379]
[1762257735510,0.28672022,104580.0,104570.0,0.00138379]
[1762257735869,0.28672022,104580.0,104570.0,0.00338379]
[1762257736078,0.28672022,104580.0,104570.0,0.05889379]
[1762257736277,0.28672022,104580.0,104570.0,0.00338379]
[1762257736788,0.33451453,104580.0,104570.0,0.00338379]
[1762257736987,1.05166475,104580.0,104570.0,0.00338379]
[1762257737585,1.05166475,104580.0,104570.0,0.00138379]
[1762257737786,0.36135455,104580.0,104570.0,0.00038379]
[1762257738960,0.36235455,104580.0,104570.0,0.00038379]
[1762257739825,0.35340788,104580.0,104570.0,0.00038379]
[1762257740020,1.05465848,104580.0,104570.0,0.00038379]
[1762257741085,0.31655397,104580.0,104570.0,0.00038379]
[1762257743091,0.33714694,104580.0,104570.0,0.00038379]
[1762257743294,0.31655397,104580.0,104570.0,0.00038379]
[1762257743635,0.33714263,104580.0,104570.0,0.00038379]
[1762257745214,1.02745283,104580.0,104570.0,0.00038379]
[1762257745564,1.12202889,104580.0,104570.0,0.00038379]
[1762257746571,0.43171869,104580.0,104570.0,0.00038379]
[1762257746749,0.41112681,104580.0,104570.0,0.00038379]
[1762257747107,0.31655075,104580.0,104570.0,0.00038379]
[1762257750900,0.30761357,104580.0,104570.0,0.00038379]
[1762257751116,0.30561357,104580.0,104570.0,0.00038379]
[1762257751569,0.31355194,104580.0,104570.0,0.00038379]
[1762257755072,0.31355194,104580.0,104570.0,0.02833379]
[1762257755288,0.28672022,104580.0,104570.0,0.03764258]
[1762257755689,0.28672022,104580.0,104570.0,0.00969258]
[1762257756262,0.28672022,104580.0,104570.0,0.00038379]
[1762257756467,0.30461964,104580.0,104570.0,0.00038379]
[1762257757439,0.31357275,104580.0,104570.0,0.00038379]
[1762257757863,0.30879175,104580.0,104570.0,0.00038379]
[1762257758574,0.30879175,104580.0,104570.0,0.05306379]
[1762257758575,0.18646015,104580.0,104570.0,0.05306379]
[1762257758777,0.18646015,104580.0,104570.0,0.06237258]
[1762257759380,0.18646015,104580.0,104570.0,0.25363202]
[1762257759587,0.19122287,104590.0,104580.0,0.20054994]
[1762257759921,0.19122287,104590.0,104580.0,0.04945879]
[1762257760350,0.2007648,104600.0,104580.0,0.24069994]
[1762257760509,0.19120458,104600.0,104590.0,0.06198879]
[1762257760682,0.20189457,104610.0,104590.0,0.25321166]
[1762257760884,0.19120458,104600.0,104590.0,0.21306166]
[1762257761285,0.19120458,104600.0,104590.0,0.25321166]
[1762257761491,0.19120458,104600.0,104590.0,0.06198879]
[1762257761693,0.19120458,104600.0,104590.0,0.25321166]
[1762257761895,0.19120458,104600.0,104590.0,0.06198879]
[1762257762550,0.19120458,104600.0,104590.0,0.03725879]
[1762257762772,0.28668365,104600.0,104590.0,0.001]
[1762257763829,0.28668365,104600.0,104590.0,0.003]
[1762257764375,0.28668365,104600.0,104590.0,0.001]
[1762257764586,0.19122287,104590.0,104580.0,0.02183879]
[1762257764781,0.19122287,104590.0,104580.0,0.04656879]
[1762257764982,0.19122287,104590.0,104580.0,0.06300879]
[1762257766211,0.19122287,104590.0,104580.0,0.06400879]
[1762257766418,0.19122287,104590.0,104580.0,0.27437405]
[1762257766617,0.19120458,104600.0,104590.0,0.20053166]
[1762257766867,0.19120458,104600.0,104590.0,0.05071879]
[1762257767052,0.19120458,104600.0,104590.0,0.24194166]
[1762257769033,0.19120458,104600.0,104590.0,0.05071879]
[1762257769249,0.19120458,104600.0,104590.0,0.24194166]
[1762257769618,0.19120458,104600.0,104590.0,0.24294166]
[1762257770180,0.20189457,104610.0,104600.0,0.00930879]
[1762257770381,0.00111793,104610.0,104600.0,0.21695337]
[1762257770505,0.00111793,104610.0,104600.0,0.24192337]
[1762257770960,0.00111793,104610.0,104600.0,0.44192337]
[1762257771119,0.20070756,104630.0,104620.0,0.19116803]
[1762257771338,0.20070756,104630.0,104620.0,0.01158]
[1762257771550,0.20070756,104630.0,104620.0,0.05299]
[1762257772296,0.20075587,104630.0,104620.0,0.06229879]
[1762257772880,0.20075587,104630.0,104620.0,0.06329879]
[1762257773457,0.20075587,104630.0,104620.0,0.06529879]
[1762257773660,0.20075587,104630.0,104620.0,0.04032879]
[1762257774449,0.20075587,104630.0,104620.0,0.06529879]
[1762257775294,0.19901496,104630.0,104620.0,0.06529879]
[1762257775577,0.19901496,104630.0,104620.0,0.02388879]
[1762257775963,0.19901496,104630.0,104620.0,0.01230879]
[1762257776162,0.19901496,104630.0,104620.0,0.02874879]
[1762257776386,0.19061096,104630.0,104620.0,0.05371879]
[1762257776531,0.19091565,104640.0,104630.0,0.03732879]
[1762257776730,0.1874254,104640.0,104630.0,0.06229879]
[1762257776969,0.18684892,104640.0,104630.0,0.06229879]
[1762257777175,0.18727548,104640.0,104630.0,0.06229879]
[1762257777501,0.20016248,104650.0,104640.0,0.05084238]
[1762257777705,0.19930029,104650.0,104640.0,0.05084238]
[1762257778015,0.19804737,104650.0,104640.0,0.24197387]
[1762257778203,0.00023858,104650.0,104640.0,0.24197387]
[1762257778411,0.21590638,104670.0,104660.0,0.02574879]
[1762257778600,0.21548781,104670.0,104660.0,0.02574879]
[1762257778802,0.21427507,104670.0,104660.0,0.05071879]
[1762257779017,0.21336705,104670.0,104660.0,0.24181376]
[1762257779217,0.21336705,104670.0,104660.0,0.05071879]
[1762257779436,0.21181253,104670.0,104660.0,0.05071879]
[1762257780174,0.21181253,104670.0,104660.0,0.02574879]
[1762257780531,0.18921745,104660.0,104650.0,0.02088879]
[1762257780754,0.19082363,104650.0,104640.0,0.00212359]
[1762257781024,0.18964197,104650.0,104640.0,0.01143238]
[1762257781263,0.18964197,104650.0,104640.0,0.00212359]
[1762257781468,0.879045,104650.0,104640.0,0.00212359]
[1762257781670,0.18813706,104650.0,104640.0,0.00212359]
[1762257781888,0.18694969,104650.0,104640.0,0.01856359]
[1762257782091,0.18606598,104650.0,104640.0,0.01656359]
[1762257782473,0.1854745,104650.0,104640.0,0.05084238]
[1762257782678,0.18462232,104650.0,104640.0,0.02587238]
[1762257782850,0.18376313,104650.0,104640.0,0.00943238]
[1762257783062,0.18287317,104650.0,104640.0,0.00012359]
[1762257783466,0.87231609,104650.0,104640.0,0.00012359]
[1762257783664,0.87173449,104650.0,104640.0,0.00012359]
[1762257783823,0.87085686,104650.0,104640.0,0.00012359]
[1762257784035,0.17967838,104650.0,104640.0,0.00012359]
[1762257784233,0.27425444,104650.0,104640.0,1e-08]
[1762257784463,0.97259297,104650.0,104640.0,0.00200001]
[1762257784687,0.97171567,104650.0,104640.0,1e-08]
[1762257784888,0.9718417,104650.0,104640.0,1e-08]
[1762257785111,0.9890356,104650.0,104640.0,0.00100001]
[1762257785308,0.89416341,104650.0,104640.0,0.00100001]
[1762257785512,0.89327827,104650.0,104640.0,1e-08]
[1762257785731,0.89239026,104650.0,104640.0,1e-08]
[1762257786076,0.89222013,104650.0,104640.0,1e-08]
[1762257786348,0.20033117,104650.0,104640.0,1e-08]
[1762257786559,0.18695154,104650.0,104640.0,1e-08]
[1762257786764,0.18576317,104650.0,104640.0,1e-08]
[1762257786920,0.18519527,104650.0,104640.0,1e-08]
[1762257787125,0.18019527,104650.0,104640.0,1e-08]
[1762257787322,0.1990037,104650.0,104640.0,1e-08]
[1762257787730,0.1990037,104650.0,104640.0,0.01644001]
[1762257787924,0.19741688,104650.0,104640.0,0.01644001]
[1762257788103,0.19741688,104650.0,104640.0,1e-08]
[1762257788309,0.19741688,104650.0,104640.0,0.00100001]
[1762257788707,0.17960845,104650.0,104640.0,0.01744001]
[1762257788914,0.17960845,104650.0,104640.0,0.0517188]
[1762257789163,0.17872717,104650.0,104640.0,0.24285029]
[1762257789393,0.00991027,104650.0,104640.0,0.24285029]
[1762257789536,0.00039642,104650.0,104640.0,0.24285029]
[1762257790450,0.00023855,104660.0,104650.0,0.19111323]
[1762257790728,0.00023855,104660.0,104650.0,0.24410323]
[1762257791038,0.00023855,104660.0,104650.0,0.25341202]
[1762257791646,0.00023855,104660.0,104650.0,0.25741202]
[1762257792981,0.00023855,104660.0,104650.0,0.26683771]
[1762257793257,0.00023855,104660.0,104650.0,0.29852258]
[1762257793816,0.00023855,104660.0,104650.0,0.28909689]
[1762257794231,0.19133352,104660.0,104650.0,0.26041202]
[1762257794428,0.00023855,104660.0,104650.0,0.26041202]
[1762257794605,0.19133352,104660.0,104650.0,0.26041202]
[1762257794810,0.19133352,104660.0,104650.0,0.06929879]
[1762257795010,0.19133352,104660.0,104650.0,0.007]
[1762257795268,0.28681259,104660.0,104650.0,0.01630879]
[1762257796245,0.29571443,104660.0,104650.0,0.01630879]
[1762257796581,0.19111323,104650.0,104640.0,0.0093088]
[1762257796738,0.19111323,104650.0,104640.0,0.22490029]
[1762257796937,0.19111323,104650.0,104640.0,0.24033029]
[1762257797134,0.28681259,104660.0,104650.0,0.00930879]
[1762257797403,0.29571793,104660.0,104650.0,0.03630879]
[1762257797769,0.29571793,104660.0,104650.0,0.03730879]
[1762257798866,0.29571793,104660.0,104650.0,0.25288202]
[1762257799088,0.28681259,104660.0,104650.0,0.25288202]
[1762257800064,0.2957282,104660.0,104650.0,0.06176879]
[1762257800381,0.29572834,104660.0,104650.0,0.06176879]
[1762257800733,0.29572834,104660.0,104650.0,0.25288202]
[1762257801511,0.29572834,104660.0,104650.0,0.001]
[1762257801717,0.89491175,104660.0,104650.0,0.001]
[1762257801903,0.89491175,104660.0,104650.0,1e-08]
[1762257802098,0.90649175,104660.0,104650.0,1e-08]
[1762257802710,0.19111323,104650.0,104640.0,1e-08]
[1762257802927,0.23842256,104650.0,104640.0,1e-08]
[1762257803298,0.84161239,104650.0,104640.0,1e-08]
[1762257805526,0.87031465,104650.0,104640.0,1e-08]
[1762257805733,0.87231465,104650.0,104640.0,1e-08]
[1762257808463,0.31152482,104650.0,104640.0,1e-08]
[1762257808665,0.87231465,104650.0,104640.0,1e-08]
[1762257808869,0.96689071,104650.0,104640.0,1e-08]
[1762257809083,0.9768907,104650.0,104640.0,1e-08]
[1762257810035,0.9748907,104650.0,104640.0,1e-08]
[1762257810356,1.54568053,104650.0,104640.0,1e-08]
[1762257810552,0.9848907,104650.0,104640.0,1e-08]
[1762257810874,0.9818907,104650.0,104640.0,1e-08]
[1762257811960,0.97189071,104650.0,104640.0,1e-08]
[1762257812147,0.96489071,104650.0,104640.0,1e-08]
[1762257812359,0.96789071,104650.0,104640.0,1e-08]
[1762257812559,0.97389071,104650.0,104640.0,1e-08]
[1762257812764,0.9838907,104650.0,104640.0,1e-08]
[1762257813645,0.97389071,104650.0,104640.0,1e-08]
[1762257813869,0.9838907,104650.0,104640.0,1e-08]
[1762257814065,0.97389071,104650.0,104640.0,1e-08]
[1762257814406,0.94518845,104650.0,104640.0,1e-08]
[1762257814563,0.85061239,104650.0,104640.0,1e-08]
[1762257817287,0.2719819,104650.0,104640.0,1e-08]
[1762257817536,0.25142898,104650.0,104640.0,1e-08]
[1762257817944,0.20011323,104650.0,104640.0,0.23932029]
[1762257818161,0.009,104650.0,104640.0,0.23932029]
[1762257818338,0.003,104650.0,104640.0,0.23932029]
[1762257818785,0.005,104650.0,104640.0,0.23932029]
[1762257819491,0.002,104650.0,104640.0,0.43932029]
[1762257819809,0.001,104650.0,104640.0,0.43932029]
[1762257820033,0.00023855,104660.0,104650.0,0.19111323]
[1762257820229,0.00023855,104660.0,104650.0,0.24172323]
[1762257821271,0.00023855,104660.0,104650.0,0.25103202]
[1762257821951,0.00023855,104660.0,104650.0,0.25603202]
[1762257822870,0.19133352,104660.0,104650.0,0.25903202]
[1762257823271,0.00023855,104660.0,104650.0,0.25903202]
[1762257823871,0.19133352,104660.0,104650.0,0.25903202]
[1762257824618,0.19133352,104660.0,104650.0,0.04403879]
[1762257824826,0.19133352,104660.0,104650.0,0.02903879]
[1762257825024,0.28681259,104660.0,104650.0,0.02903879]
[1762257825242,0.28681259,104660.0,104650.0,0.01730879]
[1762257825386,0.28681259,104660.0,104650.0,0.003]
[1762257825572,0.28681259,104660.0,104650.0,0.01525]
[1762257825926,0.28681259,104660.0,104650.0,0.003]
[1762257826066,0.28681259,104660.0,104650.0,0.03156]
[1762257826270,0.28681259,104660.0,104650.0,0.05169]
[1762257826468,0.28681259,104660.0,104650.0,0.03056]
[1762257827097,0.28681259,104660.0,104650.0,0.002]
[1762257828018,0.19111323,104650.0,104640.0,0.0093088]
[1762257828386,0.19111323,104650.0,104640.0,0.0487488]
[1762257829409,0.19111323,104650.0,104640.0,0.23988029]
[1762257829572,0.19111323,104650.0,104640.0,0.0487488]
[1762257830177,0.19111323,104650.0,104640.0,0.0256188]
[1762257831123,0.19111323,104650.0,104640.0,0.24188029]
[1762257831256,0.28681259,104660.0,104650.0,0.00930879]
[1762257831464,0.28681259,104660.0,104650.0,0.04874879]
[1762257831465,0.19133352,104660.0,104650.0,0.04874879]
[1762257831670,0.19133352,104660.0,104650.0,0.25897334]
[1762257831878,0.19133352,104660.0,104650.0,0.23986202]
[1762257832555,0.19133352,104660.0,104650.0,0.04874879]
[1762257832953,0.19133352,104660.0,104650.0,0.02561879]
[1762257833869,0.1912811,104660.0,104650.0,0.04874879]
[1762257835432,0.1912811,104660.0,104650.0,0.05074879]
[1762257835670,0.1912811,104660.0,104650.0,0.24186202]
[1762257836203,0.00018613,104660.0,104650.0,0.24186202]
[1762257836413,0.1912811,104660.0,104650.0,0.24186202]
[1762257836618,0.1912811,104660.0,104650.0,0.24386202]
[1762257837577,0.1912811,104660.0,104650.0,0.05274879]
[1762257839469,0.1912811,104660.0,104650.0,0.24386202]
[1762257839664,0.1912811,104660.0,104650.0,0.05274879]
[1762257840281,0.1912811,104660.0,104650.0,0.02961879]
[1762257840594,0.1912811,104660.0,104650.0,0.05274879]
[1762257840724,0.28676017,104660.0,104650.0,0.004]
[1762257841546,0.28676017,104660.0,104650.0,0.002]
[1762257843225,0.28676017,104660.0,104650.0,0.02561879]
[1762257843889,0.28676017,104660.0,104650.0,0.00930879]
[1762257844856,0.19111323,104650.0,104640.0,0.0093088]
[1762257845748,0.75190306,104650.0,104640.0,1e-08]
[1762257845955,0.8032364,104650.0,104640.0,0.00200001]
[1762257846389,0.82383475,104650.0,104640.0,0.00200001]
[1762257846814,0.82383475,104650.0,104640.0,1e-08]
[1762257847053,0.93628743,104650.0,104640.0,1e-08]
[1762257847238,0.19114976,104630.0,104620.0,0.01042633]
[1762257847453,0.19114976,104630.0,104620.0,0.03355633]
[1762257847705,0.19114976,104630.0,104620.0,0.02673633]
[1762257847914,0.19114976,104630.0,104620.0,0.00111754]
[1762257848127,0.85545414,104630.0,104620.0,0.00111754]
[1762257848552,0.76087808,104630.0,104620.0,0.00111754]
[1762257848796,0.78145882,104630.0,104620.0,0.00111754]
[1762257849009,0.79932383,104630.0,104620.0,0.00111754]
[1762257849414,0.22066899,104630.0,104620.0,0.00111754]
[1762257849607,0.20008825,104630.0,104620.0,0.00111754]
[1762257850925,0.20408825,104630.0,104620.0,0.00111754]
[1762257851838,0.19514976,104630.0,104620.0,0.00111754]
[1762257853600,0.19114976,104630.0,104620.0,0.00111754]
[1762257854012,0.19214976,104630.0,104620.0,0.00111754]
[1762257854215,0.19214976,104630.0,104620.0,0.04986633]
[1762257854414,0.19214976,104630.0,104620.0,0.24103436]
[1762257854908,0.19214976,104630.0,104620.0,0.04986633]
[1762257855125,0.19214976,104630.0,104620.0,0.26015116]
[1762257855296,0.19214976,104630.0,104620.0,0.24103436]
[1762257855517,0.19114976,104630.0,104620.0,0.04986633]
[1762257855742,0.19114976,104630.0,104620.0,0.02673633]
[1762257857094,0.28662716,104640.0,104630.0,0.00930879]
[1762257857315,0.28662716,104640.0,104630.0,0.03755879]
[1762257857740,0.28662716,104640.0,104630.0,0.02114879]
[1762257858665,0.28662716,104640.0,104630.0,0.00930879]
[1762257858882,0.28762716,104640.0,104630.0,0.00930879]
[1762257859545,0.28762716,104640.0,104630.0,0.02114879]
[1762257860852,0.28762716,104640.0,104630.0,0.06233879]
[1762257861077,0.19213149,104640.0,104630.0,0.25348855]
[1762257861296,0.001,104640.0,104630.0,0.25348855]
[1762257862188,0.29631491,104660.0,104650.0,0.00930879]
[1762257862426,0.29679832,104660.0,104650.0,0.02114879]
[1762257864255,0.29779832,104660.0,104650.0,0.02114879]
[1762257864657,0.29779832,104660.0,104650.0,0.00930879]
[1762257866945,0.29779832,104660.0,104650.0,0.02571879]
[1762257867999,0.29779832,104660.0,104650.0,0.00930879]
[1762257868334,0.19111323,104650.0,104640.0,0.04592879]
[1762257868750,0.19111323,104650.0,104640.0,0.25347028]
[1762257868955,0.19111323,104650.0,104640.0,0.06233879]
[1762257869154,0.19111323,104650.0,104640.0,0.05303]
[1762257869550,0.19111323,104650.0,104640.0,0.25347028]
[1762257869747,0.19111323,104650.0,104640.0,0.06233879]
[1762257870049,0.19111323,104650.0,104640.0,0.06433879]
[1762257870744,0.19111323,104650.0,104640.0,0.05503]
[1762257870951,0.19111323,104650.0,104640.0,0.01130879]
[1762257871162,0.19111323,104650.0,104640.0,0.002]
[1762257871387,0.19111323,104650.0,104640.0,0.004]
[1762257872285,0.19111323,104650.0,104640.0,0.002]
[1762257872707,0.19113149,104640.0,104630.0,0.02114879]
[1762257873724,0.19213149,104640.0,104630.0,0.03618879]
[1762257874481,0.19213149,104640.0,104630.0,0.05991879]
[1762257874924,0.19213149,104640.0,104630.0,0.25106855]
[1762257875125,0.001,104640.0,104630.0,0.25106855]
[1762257876201,0.20131925,104660.0,104640.0,0.19111475]
[1762257876404,0.00066954,104660.0,104650.0,0.23919202]
[1762257877582,0.19276451,104660.0,104650.0,0.23919202]
[1762257878025,0.19176451,104660.0,104650.0,0.23919202]
[1762257878335,0.19176451,104660.0,104650.0,0.24219202]
[1762257879277,0.00066954,104660.0,104650.0,0.24219202]
[1762257879421,0.00066954,104660.0,104650.0,0.24619202]
[1762257880449,0.19176451,104660.0,104650.0,0.05507879]
[1762257880647,0.19176451,104660.0,104650.0,0.03134879]
[1762257881252,0.19176451,104660.0,104650.0,0.05507879]
[1762257882083,0.19176451,104660.0,104650.0,0.05207879]
[1762257882407,0.19176451,104660.0,104650.0,0.05407879]
[1762257882587,0.19176451,104660.0,104650.0,0.05007879]
[1762257882904,0.19276451,104660.0,104650.0,0.05007879]
[1762257883279,0.19176451,104660.0,104650.0,0.05007879]
[1762257883689,0.19176451,104660.0,104650.0,0.02834879]
[1762257883884,0.19176451,104660.0,104650.0,0.01330879]
[1762257884725,0.22822373,104660.0,104650.0,0.01330879]
[1762257884875,0.28724358,104660.0,104650.0,0.01330879]
[1762257885720,0.28724358,104660.0,104650.0,0.01130879]
[1762257885924,0.19113149,104640.0,104630.0,0.0367]
[1762257886140,0.19113149,104640.0,104630.0,0.02114879]
[1762257886366,0.19113149,104640.0,104630.0,0.03693879]
[1762257887122,0.19113149,104640.0,104630.0,0.03893879]
[1762257887946,0.19113149,104640.0,104630.0,0.02314879]
[1762257888194,0.22935762,104640.0,104630.0,0.01130879]
[1762257888400,0.19113149,104640.0,104630.0,0.01130879]
[1762257888706,0.28661056,104640.0,104630.0,0.01130879]
[1762257888997,0.28661056,104640.0,104630.0,0.01330879]
[1762257889378,0.28661056,104640.0,104630.0,0.01130879]
[1762257889582,0.28661056,104640.0,104630.0,0.00930879]
[1762257889877,0.28761056,104640.0,104630.0,0.00930879]
[1762257894578,0.001,104640.0,104630.0,0.24110855]
[1762257894786,0.19213149,104640.0,104630.0,0.02509879]
[1762257895679,0.19113149,104640.0,104630.0,0.02809879]
[1762257895879,0.19113149,104640.0,104630.0,0.03209879]
[1762257896019,0.19113149,104640.0,104630.0,0.02909879]
[1762257896218,0.19113149,104640.0,104630.0,0.05395879]
[1762257896445,0.19113149,104640.0,104630.0,0.26222352]
[1762257896654,0.19113149,104640.0,104630.0,0.05195879]
[1762257896856,0.19113149,104640.0,104630.0,0.07307376]
[1762257897232,0.19113149,104640.0,104630.0,0.26422352]
[1762257897381,0.19113149,104640.0,104630.0,0.24510855]
[1762257897594,0.19113149,104640.0,104630.0,0.05395879]
[1762257898377,0.19113149,104640.0,104630.0,0.07307376]
[1762257898598,0.19113149,104640.0,104630.0,0.02909879]
[1762257899706,0.19113149,104640.0,104630.0,0.01330879]
[1762257901869,0.28661056,104640.0,104630.0,0.002]
[1762257902090,0.28661056,104640.0,104620.0,0.00111754]
[1762257902091,0.19114976,104630.0,104620.0,0.00111754]
[1762257902306,0.92315391,104630.0,104620.0,0.00111754]
[1762257902530,0.93208661,104630.0,104620.0,0.00111754]
[1762257902738,1.04724574,104630.0,104620.0,0.00111754]
[1762257902959,0.24248246,104630.0,104620.0,0.00111754]
[1762257903171,0.26306549,104630.0,104620.0,0.00111754]
[1762257903394,0.24248246,104630.0,104620.0,0.00111754]
[1762257903595,0.25503641,104630.0,104620.0,0.00111754]
[1762257903796,0.27708939,104630.0,104620.0,0.00111754]
[1762257904054,0.96369354,104630.0,104620.0,0.00111754]
[1762257904700,0.94164056,104630.0,104620.0,0.00111754]
[1762257904907,0.25303641,104630.0,104620.0,0.00111754]
[1762257905110,0.24310371,104630.0,104620.0,0.00111754]
[1762257905334,0.23854976,104630.0,104620.0,0.00111754]
[1762257905536,0.24054976,104630.0,104620.0,0.00111754]
[1762257905734,0.23854976,104630.0,104620.0,0.00111754]
[1762257906075,0.23954976,104630.0,104620.0,0.00111754]
[1762257906527,0.23854976,104630.0,104620.0,0.00111754]
[1762257906963,0.32812582,104630.0,104620.0,0.00111754]
[1762257907756,0.23754976,104630.0,104620.0,0.00111754]
[1762257907962,0.23754976,104630.0,104620.0,0.01690754]
[1762257908524,0.23854976,104630.0,104620.0,0.02621633]
[1762257908726,0.23754976,104630.0,104620.0,0.02621633]
[1762257908950,0.23754976,104630.0,104620.0,0.01042633]
[1762257909355,0.23354976,104630.0,104620.0,0.01042633]
[1762257909556,0.23354976,104630.0,104620.0,0.24224436]
[1762257909766,0.28661056,104640.0,104630.0,0.00930879]
[1762257909955,0.28661056,104640.0,104630.0,0.25268855]
[1762257910386,0.28661056,104640.0,104630.0,0.06153879]
[1762257910993,0.19113149,104640.0,104630.0,0.25268855]
[1762257911212,0.19113149,104640.0,104630.0,0.06153879]
[1762257911423,0.19113149,104640.0,104630.0,0.01030879]
[1762257911685,0.32579226,104640.0,104630.0,0.01030879]
[1762257911890,0.28661056,104640.0,104630.0,0.01030879]
[1762257912298,0.28661056,104640.0,104630.0,0.01230879]
[1762257912505,0.28661056,104640.0,104630.0,0.01030879]
[1762257912702,0.28661056,104640.0,104630.0,0.04995879]
[1762257913228,0.28761056,104640.0,104630.0,0.04995879]
[1762257913468,0.28761056,104640.0,104630.0,0.02509879]
[1762257913671,0.28661056,104640.0,104630.0,0.00930879]
[1762257913848,0.28661056,104640.0,104630.0,0.02509879]
[1762257914589,0.28661056,104640.0,104630.0,0.02609879]
[1762257914794,0.28661056,104640.0,104630.0,0.01030879]
[1762257915109,0.28661056,104640.0,104630.0,0.01230879]
[1762257915482,0.28661056,104640.0,104630.0,0.01030879]
[1762257915837,0.28661056,104640.0,104630.0,0.001]
[1762257916237,0.28661056,104640.0,104630.0,0.01030879]
[1762257916622,0.19114976,104630.0,104620.0,0.01042633]
[1762257917942,0.19114976,104630.0,104620.0,0.02679633]
[1762257918117,0.19114976,104630.0,104620.0,0.04951633]
[1762257918522,0.19114976,104630.0,104620.0,0.24068436]
[1762257919298,0.19114976,104630.0,104620.0,0.04951633]
[1762257919622,0.19114976,104630.0,104620.0,0.25980116]
[1762257919832,0.19114976,104630.0,104620.0,0.24268436]
[1762257920224,0.19114976,104630.0,104620.0,0.05151633]
[1762257920821,0.19114976,104630.0,104620.0,0.26180116]
[1762257921035,0.19114976,104630.0,104620.0,0.24268436]
[1762257921651,0.28661056,104640.0,104630.0,0.00930879]
[1762257921823,0.28661056,104640.0,104630.0,0.04739879]
[1762257922964,0.28761056,104640.0,104630.0,0.04739879]
[1762257923172,0.28761056,104640.0,104630.0,0.00930879]
[1762257924429,0.38218662,104640.0,104630.0,0.00930879]
[1762257924612,0.28761056,104640.0,104630.0,0.00930879]
[1762257925227,0.28761056,104640.0,104630.0,0.04739879]
[1762257925635,0.28761056,104640.0,104630.0,0.02467879]
[1762257925813,0.28761056,104640.0,104630.0,0.00930879]
[1762257926012,0.28761056,104640.0,104630.0,0.02467879]
[1762257926225,0.28761056,104640.0,104630.0,0.04739879]
[1762257926421,0.28761056,104640.0,104630.0,0.23854855]
[1762257926653,0.19213149,104640.0,104630.0,0.04739879]
[1762257926866,0.19113149,104640.0,104630.0,0.04739879]
[1762257927282,0.19113149,104640.0,104630.0,0.04839879]
[1762257928013,0.19113149,104640.0,104630.0,0.24154855]
[1762257928556,0.2006855,104650.0,104640.0,0.00930879]
[1762257928785,0.2006855,104650.0,104640.0,0.04739879]
[1762257929950,0.2016855,104650.0,104640.0,0.04739879]
[1762257930146,0.2016855,104650.0,104640.0,0.02467879]
[1762257930697,0.2016855,104650.0,104640.0,0.00930879]
[1762257931739,0.2016855,104650.0,104640.0,0.02573879]
[1762257931954,0.2016855,104650.0,104640.0,0.04881879]
[1762257933144,0.2016855,104650.0,104640.0,0.23995028]
[1762257933404,0.001,104650.0,104640.0,0.23995028]
[1762257934038,0.00066954,104660.0,104650.0,0.19111323]
[1762257934254,0.00066954,104660.0,104650.0,0.24236323]
[1762257934540,0.00066954,104660.0,104650.0,0.25167202]
[1762257934760,0.19176451,104660.0,104650.0,0.25167202]
[1762257935420,0.19176451,104660.0,104650.0,0.06055879]
[1762257935865,0.19127049,104680.0,104670.0,0.00930879]
[1762257936096,0.19141545,104680.0,104670.0,0.03747879]
[1762257936331,0.19141545,104680.0,104670.0,0.06055879]
[1762257936561,0.00034496,104680.0,104670.0,0.2516355]
[1762257936791,0.00082194,104680.0,104670.0,0.2516355]
[1762257937282,0.00182194,104680.0,104670.0,0.2516355]
[1762257937531,0.1928804,104680.0,104670.0,0.06055879]
[1762257937758,0.00182194,104680.0,104670.0,0.27074317]
[1762257937979,0.00182194,104680.0,104670.0,0.2516355]
[1762257938635,0.1928804,104680.0,104670.0,0.06055879]
[1762257939254,0.1928804,104680.0,104670.0,0.2516355]
[1762257939637,0.00182194,104680.0,104670.0,0.2516355]
[1762257939872,0.1928804,104680.0,104670.0,0.2516355]
[1762257940055,0.00182194,104680.0,104670.0,0.2516355]
[1762257940492,0.1928804,104680.0,104670.0,0.2516355]
[1762257940905,0.1928804,104680.0,104670.0,0.06055879]
[1762257943090,0.28835947,104680.0,104670.0,0.06055879]
[1762257944057,0.28835947,104680.0,104670.0,0.03747879]
[1762257944673,0.28835947,104680.0,104670.0,0.06055879]
[1762257945637,0.28835947,104680.0,104670.0,0.03747879]
[1762257945859,0.28835947,104680.0,104670.0,0.06242879]
[1762257946908,0.28835947,104680.0,104670.0,0.03747879]
[1762257947109,0.28835947,104680.0,104650.0,0.01174]
[1762257947110,0.19107671,104670.0,104650.0,0.01174]
[1762257947285,0.28657404,104660.0,104650.0,0.04599879]